[Event "*** Titled Tuesday Blitz"]
[Site "Chess.com"]
[Date "2019.11.05"]
[Round "9"]
[White "boasovietica"]
[Black "SHIVACalypso"]
[Result "1-0"]
[WhiteElo "2429"]
[BlackElo "2275"]
[TimeControl "180+2"]
[EndTime "15:04:05 PST"]
[Termination "boasovietica won by resignation"]

1. Nf3 {[%clk 0:03:01.9]} 1... Nf6 {[%clk 0:02:59.8]} 2. c4 {[%clk 0:03:01.7]}
2... g6 {[%clk 0:03:01.2]} 3. Nc3 {[%clk 0:03:02]} 3... Bg7 {[%clk 0:03:02.7]}
4. e4 {[%clk 0:03:02.3]} 4... d6 {[%clk 0:03:01.2]} 5. d4 {[%clk 0:03:03.5]}
5... O-O {[%clk 0:03:01.8]} 6. Be2 {[%clk 0:03:03.1]} 6... Nbd7 {[%clk
0:03:03.2]} 7. Bg5 {[%clk 0:02:58]} 7... e5 {[%clk 0:03:04.2]} 8. d5 {[%clk
0:02:57.3]} 8... h6 {[%clk 0:03:04.2]} 9. Bh4 {[%clk 0:02:57.9]} 9... g5 {[%clk
0:03:05.1]} 10. Bg3 {[%clk 0:02:58.6]} 10... Nh5 {[%clk 0:03:05.5]} 11. O-O
{[%clk 0:02:55]} 11... Nxg3 {[%clk 0:03:06.1]} 12. fxg3 {[%clk 0:02:43.8]} 12...
a5 {[%clk 0:03:07.3]} 13. Nd2 {[%clk 0:02:39.7]} 13... Nc5 {[%clk 0:03:06.7]}
14. Bg4 {[%clk 0:02:39.2]} 14... Bxg4 {[%clk 0:02:57.9]} 15. Qxg4 {[%clk
0:02:39.3]} 15... Qc8 {[%clk 0:02:59.8]} 16. Rf5 {[%clk 0:02:35.6]} 16... c6
{[%clk 0:02:50.5]} 17. Raf1 {[%clk 0:02:34.2]} 17... cxd5 {[%clk 0:02:50]} 18.
Nxd5 {[%clk 0:02:33.5]} 18... Qe6 {[%clk 0:02:32.4]} 19. h4 {[%clk 0:02:22.6]}
19... f6 {[%clk 0:02:24.4]} 20. hxg5 {[%clk 0:02:12.7]} 20... fxg5 {[%clk
0:02:24.8]} 21. Nc7 {[%clk 0:02:12.6]} 21... Qe7 {[%clk 0:02:11.9]} 22. Nxa8
{[%clk 0:02:05.3]} 22... Rxa8 {[%clk 0:02:13.8]} 23. Qh5 {[%clk 0:02:02.2]}
23... Qe6 {[%clk 0:02:09]} 24. Rf7 {[%clk 0:01:49.9]} 24... Nd7 {[%clk 0:01:57]}
25. Nb1 {[%clk 0:01:24.1]} 25... Nf6 {[%clk 0:01:54.5]} 26. R1xf6 {[%clk
0:01:23.3]} 1-0

[Event "*** Titled Tuesday Blitz"]
[Site "Chess.com"]
[Date "2019.11.05"]
[Round "9"]
[White "adricalderon8"]
[Black "newauto"]
[Result "1-0"]
[WhiteElo "2366"]
[BlackElo "1930"]
[TimeControl "180+2"]
[EndTime "15:04:06 PST"]
[Termination "adricalderon8 won by checkmate"]

1. e4 {[%clk 0:03:01.9]} 1... c6 {[%clk 0:03:00.7]} 2. d4 {[%clk 0:03:01.7]}
2... d5 {[%clk 0:03:02.6]} 3. e5 {[%clk 0:03:02.7]} 3... Bf5 {[%clk 0:03:01.5]}
4. h4 {[%clk 0:03:02.6]} 4... h5 {[%clk 0:03:01.5]} 5. Bg5 {[%clk 0:03:04.2]}
5... Qb6 {[%clk 0:02:58.5]} 6. Bd3 {[%clk 0:03:05.7]} 6... Bxd3 {[%clk
0:02:57.2]} 7. Qxd3 {[%clk 0:03:05.2]} 7... Qxb2 {[%clk 0:02:53.5]} 8. e6 {[%clk
0:03:04.7]} 8... Qxa1 {[%clk 0:02:45.7]} 9. Qb3 {[%clk 0:03:03.5]} 9... b5
{[%clk 0:02:01.7]} 10. exf7+ {[%clk 0:03:00.3]} 10... Kxf7 {[%clk 0:01:59.7]}
11. Nf3 {[%clk 0:03:01.8]} 11... Nd7 {[%clk 0:01:58.2]} 12. O-O {[%clk
0:03:02.1]} 12... a5 {[%clk 0:01:49]} 13. Bd2 {[%clk 0:02:53]} 13... a4 {[%clk
0:01:48.4]} 14. Ng5+ {[%clk 0:02:53.9]} 14... Ke8 {[%clk 0:01:39.5]} 15. Qd3
{[%clk 0:02:48]} 15... Rh6 {[%clk 0:01:15.4]} 16. Re1 {[%clk 0:02:42.4]} 16...
Qxa2 {[%clk 0:00:52]} 17. Ne6 {[%clk 0:02:42.7]} 17... Rxe6 {[%clk 0:00:42]} 18.
Rxe6 {[%clk 0:02:42.4]} 18... Qxb1+ {[%clk 0:00:42.2]} 19. Re1 {[%clk
0:02:44.1]} 19... Qa2 {[%clk 0:00:30.1]} 20. Qg6+ {[%clk 0:02:44.8]} 20... Kd8
{[%clk 0:00:30.3]} 21. Qxc6 {[%clk 0:02:46.5]} 21... Rb8 {[%clk 0:00:28.3]} 22.
Ba5+ {[%clk 0:02:30.9]} 22... Ke8 {[%clk 0:00:25.1]} 23. Qg6# {[%clk 0:02:31.4]}
1-0

[Event "*** Titled Tuesday Blitz"]
[Site "Chess.com"]
[Date "2019.11.05"]
[Round "9"]
[White "justantan"]
[Black "Korchmar_Vasiliy"]
[Result "0-1"]
[WhiteElo "2842"]
[BlackElo "2736"]
[TimeControl "180+2"]
[EndTime "15:04:29 PST"]
[Termination "Korchmar_Vasiliy won by resignation"]

1. e4 {[%clk 0:03:01.9]} 1... c5 {[%clk 0:03:01]} 2. Nf3 {[%clk 0:03:02.9]} 2...
d6 {[%clk 0:03:01.7]} 3. d4 {[%clk 0:03:03.8]} 3... cxd4 {[%clk 0:03:03.6]} 4.
Nxd4 {[%clk 0:03:04.7]} 4... Nf6 {[%clk 0:03:04]} 5. Nc3 {[%clk 0:03:06.4]} 5...
Nc6 {[%clk 0:03:04.6]} 6. Bg5 {[%clk 0:03:06.9]} 6... e6 {[%clk 0:03:04.6]} 7.
Qd2 {[%clk 0:03:07.7]} 7... a6 {[%clk 0:03:05.1]} 8. O-O-O {[%clk 0:03:08.9]}
8... h6 {[%clk 0:03:05.1]} 9. Nxc6 {[%clk 0:02:58.7]} 9... bxc6 {[%clk 0:03:07]}
10. Bf4 {[%clk 0:03:00.2]} 10... d5 {[%clk 0:03:02.7]} 11. Qe3 {[%clk
0:03:00.5]} 11... Bb4 {[%clk 0:03:03]} 12. a3 {[%clk 0:02:57.3]} 12... Ba5
{[%clk 0:03:03.8]} 13. Be2 {[%clk 0:02:57.6]} 13... O-O {[%clk 0:03:04.6]} 14.
e5 {[%clk 0:02:56.9]} 14... Nd7 {[%clk 0:03:05.5]} 15. h4 {[%clk 0:02:54.6]}
15... f6 {[%clk 0:03:05.3]} 16. exf6 {[%clk 0:02:52]} 16... Qxf6 {[%clk
0:03:07.2]} 17. Bd6 {[%clk 0:02:43.5]} 17... Bxc3 {[%clk 0:02:53.9]} 18. Qxc3
{[%clk 0:02:39.5]} 18... Qxc3 {[%clk 0:02:55.2]} 19. bxc3 {[%clk 0:02:40.4]}
19... Rxf2 {[%clk 0:02:57.1]} 20. Bf3 {[%clk 0:02:37.7]} 20... e5 {[%clk
0:02:57.4]} 21. Rhe1 {[%clk 0:02:36.5]} 21... a5 {[%clk 0:02:34.9]} 22. c4
{[%clk 0:02:36.2]} 22... Nb6 {[%clk 0:02:31.2]} 23. cxd5 {[%clk 0:02:26.1]}
23... Bf5 {[%clk 0:02:32.3]} 24. Rd2 {[%clk 0:02:18.9]} 24... Rxd2 {[%clk
0:02:30.9]} 25. Kxd2 {[%clk 0:02:20.4]} 25... Nc4+ {[%clk 0:02:32.3]} 26. Kc3
{[%clk 0:02:21.5]} 26... Nxd6 {[%clk 0:02:34.2]} 27. Rxe5 {[%clk 0:02:21.3]}
27... c5 {[%clk 0:02:30.4]} 28. g4 {[%clk 0:02:22.2]} 28... Bd7 {[%clk
0:02:25.8]} 29. g5 {[%clk 0:02:19.1]} 29... hxg5 {[%clk 0:02:25.5]} 30. hxg5
{[%clk 0:02:20]} 30... Re8 {[%clk 0:02:23.6]} 31. Rxe8+ {[%clk 0:02:10.7]} 31...
Bxe8 {[%clk 0:02:25.5]} 0-1

[Event "*** Titled Tuesday Blitz"]
[Site "Chess.com"]
[Date "2019.11.05"]
[Round "9"]
[White "Manukyan_Artak"]
[Black "Vojtap"]
[Result "0-1"]
[WhiteElo "2370"]
[BlackElo "2183"]
[TimeControl "180+2"]
[EndTime "15:04:34 PST"]
[Termination "Vojtap won by resignation"]

1. e4 {[%clk 0:03:01.9]} 1... c5 {[%clk 0:03:00.8]} 2. Nf3 {[%clk 0:03:02.9]}
2... d6 {[%clk 0:03:01.9]} 3. Bb5+ {[%clk 0:03:02.9]} 3... Bd7 {[%clk
0:03:01.8]} 4. Bxd7+ {[%clk 0:03:03.7]} 4... Qxd7 {[%clk 0:03:03.7]} 5. c4
{[%clk 0:03:05.6]} 5... Nf6 {[%clk 0:03:02.7]} 6. Nc3 {[%clk 0:03:06.9]} 6... g6
{[%clk 0:03:03.6]} 7. d4 {[%clk 0:03:07.3]} 7... cxd4 {[%clk 0:03:04.2]} 8. Nxd4
{[%clk 0:03:09.2]} 8... Bg7 {[%clk 0:03:05.4]} 9. f3 {[%clk 0:03:10.2]} 9... O-O
{[%clk 0:03:06]} 10. Be3 {[%clk 0:03:11.6]} 10... Rc8 {[%clk 0:03:03.8]} 11. b3
{[%clk 0:03:12.6]} 11... e6 {[%clk 0:02:38.5]} 12. Rc1 {[%clk 0:03:09.4]} 12...
d5 {[%clk 0:02:32.2]} 13. cxd5 {[%clk 0:03:09.9]} 13... exd5 {[%clk 0:02:32.6]}
14. Nxd5 {[%clk 0:03:07.7]} 14... Rxc1 {[%clk 0:02:10]} 15. Nxf6+ {[%clk
0:02:59.7]} 15... Bxf6 {[%clk 0:02:10.4]} 16. Qxc1 {[%clk 0:03:00.4]} 16... Bxd4
{[%clk 0:02:11.1]} 17. Bxd4 {[%clk 0:02:55]} 17... Qxd4 {[%clk 0:02:11.4]} 18.
Qc8+ {[%clk 0:02:55.9]} 18... Kg7 {[%clk 0:02:11.6]} 19. Qxb7 {[%clk 0:02:55.6]}
19... Qa1+ {[%clk 0:02:10.7]} 20. Kf2 {[%clk 0:02:50.8]} 20... Qxh1 {[%clk
0:02:10.9]} 21. Qxa8 {[%clk 0:02:51]} 21... Qxh2 {[%clk 0:02:11]} 22. Qxa7
{[%clk 0:02:51.1]} 22... Qe5 {[%clk 0:02:08.2]} 23. Qb7 {[%clk 0:02:36.2]} 23...
Qc5+ {[%clk 0:02:02.2]} 24. Kg3 {[%clk 0:02:30.6]} 24... Nc6 {[%clk 0:02:04.1]}
25. a4 {[%clk 0:02:28.5]} 25... Nd4 {[%clk 0:01:49.5]} 26. Kh2 {[%clk
0:01:52.5]} 26... Ne2 {[%clk 0:01:45.6]} 27. Qd5 {[%clk 0:01:41.7]} 27... Qg1+
{[%clk 0:01:42.6]} 28. Kh3 {[%clk 0:01:41.1]} 28... Qh1+ {[%clk 0:01:31.5]} 29.
Kg4 {[%clk 0:01:37.6]} 29... h5+ {[%clk 0:01:32.4]} 0-1

[Event "*** Titled Tuesday Blitz"]
[Site "Chess.com"]
[Date "2019.11.05"]
[Round "9"]
[White "anesar92"]
[Black "TomasKapitanchuk"]
[Result "1-0"]
[WhiteElo "2689"]
[BlackElo "2516"]
[TimeControl "180+2"]
[EndTime "15:04:43 PST"]
[Termination "anesar92 won by resignation"]

1. e4 {[%clk 0:03:01.9]} 1... c5 {[%clk 0:03:01.4]} 2. Nf3 {[%clk 0:03:03]} 2...
e6 {[%clk 0:03:02.9]} 3. d4 {[%clk 0:03:04.6]} 3... cxd4 {[%clk 0:03:04.8]} 4.
Nxd4 {[%clk 0:03:05.6]} 4... Nc6 {[%clk 0:03:06.2]} 5. Nc3 {[%clk 0:03:07]} 5...
Qc7 {[%clk 0:03:07.6]} 6. Be2 {[%clk 0:03:08.6]} 6... Nf6 {[%clk 0:03:08.2]} 7.
Be3 {[%clk 0:03:06.7]} 7... Be7 {[%clk 0:03:08.9]} 8. f4 {[%clk 0:03:07.4]} 8...
d6 {[%clk 0:03:09.8]} 9. g4 {[%clk 0:03:08.9]} 9... Nxd4 {[%clk 0:03:04.9]} 10.
Qxd4 {[%clk 0:03:07.5]} 10... e5 {[%clk 0:03:05]} 11. Qd2 {[%clk 0:03:07.3]}
11... exf4 {[%clk 0:03:02.2]} 12. Bxf4 {[%clk 0:03:07.6]} 12... O-O {[%clk
0:02:52.2]} 13. g5 {[%clk 0:03:07.3]} 13... Ng4 {[%clk 0:02:39.6]} 14. Nd5
{[%clk 0:03:06.1]} 14... Qd8 {[%clk 0:02:41]} 15. O-O-O {[%clk 0:03:04.3]} 15...
Re8 {[%clk 0:02:05.1]} 16. Bb5 {[%clk 0:02:50.6]} 16... Bd7 {[%clk 0:01:40.1]}
17. Bxd7 {[%clk 0:02:48.1]} 17... Qxd7 {[%clk 0:01:40.9]} 18. h3 {[%clk
0:02:49.6]} 18... Qa4 {[%clk 0:00:54.7]} 19. hxg4 {[%clk 0:02:44.3]} 19... Qxa2
{[%clk 0:00:53.2]} 20. Qh2 {[%clk 0:02:29.6]} 20... h6 {[%clk 0:00:53]} 21. gxh6
{[%clk 0:02:27.4]} 21... Qa1+ {[%clk 0:00:51.7]} 22. Kd2 {[%clk 0:02:27.9]}
22... Qxb2 {[%clk 0:00:53.6]} 23. hxg7 {[%clk 0:02:17.1]} 23... Qxg7 {[%clk
0:00:54.9]} 24. Qh6 {[%clk 0:02:07.2]} 24... Bd8 {[%clk 0:00:51.9]} 25. Qxg7+
{[%clk 0:02:04.8]} 25... Kxg7 {[%clk 0:00:53.8]} 26. Kd3 {[%clk 0:02:06.2]}
26... Rc8 {[%clk 0:00:53]} 27. Rh5 {[%clk 0:02:06.7]} 27... Ba5 {[%clk
0:00:49.1]} 1-0

[Event "*** Titled Tuesday Blitz"]
[Site "Chess.com"]
[Date "2019.11.05"]
[Round "9"]
[White "GelmanAlexander"]
[Black "Last7Samurai"]
[Result "0-1"]
[WhiteElo "2522"]
[BlackElo "2691"]
[TimeControl "180+2"]
[EndTime "15:05:19 PST"]
[Termination "Last7Samurai won by resignation"]

1. e4 {[%clk 0:03:01.9]} 1... c5 {[%clk 0:02:55.2]} 2. b4 {[%clk 0:03:01.6]}
2... cxb4 {[%clk 0:02:55.2]} 3. a3 {[%clk 0:03:02.6]} 3... e5 {[%clk 0:02:56.4]}
4. f4 {[%clk 0:02:40.2]} 4... Nc6 {[%clk 0:02:52.7]} 5. Nf3 {[%clk 0:02:41]}
5... d5 {[%clk 0:02:49.6]} 6. exd5 {[%clk 0:02:41]} 6... Qxd5 {[%clk 0:02:50.2]}
7. axb4 {[%clk 0:02:02.1]} 7... Bxb4 {[%clk 0:02:52.1]} 8. c3 {[%clk 0:01:44.3]}
8... Bc5 {[%clk 0:02:47.3]} 9. fxe5 {[%clk 0:01:42.5]} 9... Nxe5 {[%clk
0:02:37.3]} 10. Bb5+ {[%clk 0:01:14.6]} 10... Kf8 {[%clk 0:02:27.9]} 11. d4
{[%clk 0:00:57.7]} 11... Nxf3+ {[%clk 0:02:24.4]} 12. gxf3 {[%clk 0:00:56.3]}
12... Be7 {[%clk 0:01:54.3]} 13. Qe2 {[%clk 0:00:55.6]} 13... Bh4+ {[%clk
0:01:51.2]} 14. Kd1 {[%clk 0:00:50.4]} 14... Bd7 {[%clk 0:01:48.6]} 15. Bc4
{[%clk 0:00:41.9]} 15... Qc6 {[%clk 0:01:31.3]} 16. Re1 {[%clk 0:00:29.4]} 16...
Re8 {[%clk 0:01:22.7]} 17. Ba3+ {[%clk 0:00:29.3]} 17... Be7 {[%clk 0:01:20.6]}
18. Qd2 {[%clk 0:00:21.5]} 18... Qxc4 {[%clk 0:01:18.9]} 0-1

[Event "*** Titled Tuesday Blitz"]
[Site "Chess.com"]
[Date "2019.11.05"]
[Round "9"]
[White "BIG_Pirate"]
[Black "vladimirdamjanovic"]
[Result "0-1"]
[WhiteElo "2437"]
[BlackElo "2594"]
[TimeControl "180+2"]
[EndTime "15:05:29 PST"]
[Termination "vladimirdamjanovic won by checkmate"]

1. Nf3 {[%clk 0:03:01.9]} 1... c5 {[%clk 0:03:00.6]} 2. c4 {[%clk 0:03:02.8]}
2... Nc6 {[%clk 0:03:00.3]} 3. Nc3 {[%clk 0:03:03.8]} 3... g6 {[%clk 0:03:01.6]}
4. g3 {[%clk 0:03:05]} 4... Bg7 {[%clk 0:03:02.5]} 5. Bg2 {[%clk 0:03:06.5]}
5... d6 {[%clk 0:03:04.1]} 6. O-O {[%clk 0:03:07.1]} 6... Bg4 {[%clk 0:03:05.1]}
7. a3 {[%clk 0:03:07.9]} 7... Qd7 {[%clk 0:03:05.6]} 8. Re1 {[%clk 0:03:08.9]}
8... h5 {[%clk 0:03:05.9]} 9. Rb1 {[%clk 0:03:01.4]} 9... h4 {[%clk 0:03:05.5]}
10. b4 {[%clk 0:02:59.6]} 10... hxg3 {[%clk 0:03:05]} 11. hxg3 {[%clk 0:02:54]}
11... Bh3 {[%clk 0:03:04.7]} 12. Bh1 {[%clk 0:02:54.7]} 12... Bf5 {[%clk
0:03:04.8]} 13. Rb3 {[%clk 0:02:41.1]} 13... Rxh1+ {[%clk 0:02:43.3]} 14. Kxh1
{[%clk 0:02:41.5]} 14... Nf6 {[%clk 0:02:41.5]} 15. bxc5 {[%clk 0:02:27.5]}
15... dxc5 {[%clk 0:02:41.7]} 16. Kg1 {[%clk 0:01:55.8]} 16... O-O-O {[%clk
0:02:40.3]} 17. Nd5 {[%clk 0:01:16.8]} 17... Rh8 {[%clk 0:02:30.5]} 18. Nxf6
{[%clk 0:01:04.2]} 18... Bxf6 {[%clk 0:02:29.3]} 19. Bb2 {[%clk 0:01:04.9]}
19... Bxb2 {[%clk 0:02:15.9]} 20. Rxb2 {[%clk 0:01:05.3]} 20... Be4 {[%clk
0:02:17.1]} 21. Nh4 {[%clk 0:00:50.2]} 21... Rxh4 {[%clk 0:02:15.4]} 22. f3
{[%clk 0:00:43.4]} 22... Rh8 {[%clk 0:01:51.1]} 23. Qb3 {[%clk 0:00:23.9]} 23...
Nd4 {[%clk 0:01:50.5]} 24. Qe3 {[%clk 0:00:18.5]} 24... Qh3 {[%clk 0:01:38.8]}
25. Qxe4 {[%clk 0:00:19.1]} 25... Qxg3+ {[%clk 0:01:31.1]} 26. Kf1 {[%clk
0:00:17.4]} 26... Rh1# {[%clk 0:01:32.5]} 0-1

[Event "*** Titled Tuesday Blitz"]
[Site "Chess.com"]
[Date "2019.11.05"]
[Round "9"]
[White "Shield12"]
[Black "esskeettit"]
[Result "1-0"]
[WhiteElo "2797"]
[BlackElo "2452"]
[TimeControl "180+2"]
[EndTime "15:05:31 PST"]
[Termination "Shield12 won by checkmate"]

1. e4 {[%clk 0:03:01.9]} 1... c5 {[%clk 0:02:59.8]} 2. Nf3 {[%clk 0:03:02.9]}
2... Nc6 {[%clk 0:02:58.8]} 3. d4 {[%clk 0:03:03.3]} 3... cxd4 {[%clk
0:03:00.1]} 4. Nxd4 {[%clk 0:03:05.2]} 4... g6 {[%clk 0:02:59.3]} 5. c4 {[%clk
0:03:05.2]} 5... Nf6 {[%clk 0:02:56.1]} 6. Nc3 {[%clk 0:03:05.3]} 6... Bg7
{[%clk 0:02:56.6]} 7. Be3 {[%clk 0:03:06.2]} 7... O-O {[%clk 0:02:52.5]} 8. Be2
{[%clk 0:03:06.8]} 8... d6 {[%clk 0:02:49.4]} 9. O-O {[%clk 0:03:06.2]} 9... Qa5
{[%clk 0:02:47.6]} 10. h3 {[%clk 0:03:04.1]} 10... Nxd4 {[%clk 0:02:43.3]} 11.
Bxd4 {[%clk 0:03:04.9]} 11... Be6 {[%clk 0:02:43.4]} 12. Rc1 {[%clk 0:02:58]}
12... Rfc8 {[%clk 0:02:31.3]} 13. b3 {[%clk 0:02:58.6]} 13... Nd7 {[%clk
0:02:23.3]} 14. Bxg7 {[%clk 0:02:57.9]} 14... Kxg7 {[%clk 0:02:22]} 15. f4
{[%clk 0:02:59.8]} 15... Nf6 {[%clk 0:01:59.7]} 16. Bd3 {[%clk 0:02:55.8]} 16...
Bd7 {[%clk 0:01:56.3]} 17. Qe2 {[%clk 0:02:54.5]} 17... Nh5 {[%clk 0:01:34.4]}
18. Rf3 {[%clk 0:02:41.6]} 18... b5 {[%clk 0:01:27.4]} 19. cxb5 {[%clk
0:02:24.3]} 19... e5 {[%clk 0:00:55.7]} 20. Qb2 {[%clk 0:02:18.4]} 20... Nxf4
{[%clk 0:00:41]} 21. Rxf4 {[%clk 0:02:19]} 21... exf4 {[%clk 0:00:42.9]} 22.
Nd5+ {[%clk 0:02:18.5]} 22... Kh6 {[%clk 0:00:44.3]} 23. Rf1 {[%clk 0:02:17.4]}
23... Bxb5 {[%clk 0:00:38.2]} 24. Rxf4 {[%clk 0:02:15.3]} 24... Qe1+ {[%clk
0:00:36.9]} 25. Rf1 {[%clk 0:02:15.8]} 25... Qa5 {[%clk 0:00:34]} 26. b4 {[%clk
0:02:01.7]} 26... Qa6 {[%clk 0:00:30.9]} 27. Rxf7 {[%clk 0:02:00]} 27... Bxd3
{[%clk 0:00:14.5]} 28. Qg7+ {[%clk 0:02:00.2]} 28... Kg5 {[%clk 0:00:06.7]} 29.
Qf6+ {[%clk 0:02:00.8]} 29... Kh5 {[%clk 0:00:05.8]} 30. Rxh7# {[%clk
0:02:01.4]} 1-0

[Event "*** Titled Tuesday Blitz"]
[Site "Chess.com"]
[Date "2019.11.05"]
[Round "9"]
[White "LimeInTheCoconut"]
[Black "politeplayer"]
[Result "1-0"]
[WhiteElo "2462"]
[BlackElo "2242"]
[TimeControl "180+2"]
[EndTime "15:05:37 PST"]
[Termination "LimeInTheCoconut won by resignation"]

1. Nf3 {[%clk 0:03:01.9]} 1... Nf6 {[%clk 0:02:59.7]} 2. c4 {[%clk 0:03:02.6]}
2... g6 {[%clk 0:02:58.3]} 3. Nc3 {[%clk 0:03:03.5]} 3... Bg7 {[%clk 0:02:59.4]}
4. e4 {[%clk 0:03:05.1]} 4... d6 {[%clk 0:03:00.4]} 5. d4 {[%clk 0:03:06.8]}
5... O-O {[%clk 0:03:00.9]} 6. Be2 {[%clk 0:03:08.5]} 6... e5 {[%clk 0:03:02.2]}
7. d5 {[%clk 0:03:10]} 7... a5 {[%clk 0:03:00.2]} 8. Bg5 {[%clk 0:03:11.5]} 8...
h6 {[%clk 0:02:58.6]} 9. Be3 {[%clk 0:03:12.4]} 9... Ng4 {[%clk 0:02:49.7]} 10.
Bd2 {[%clk 0:03:13.6]} 10... f5 {[%clk 0:02:46.2]} 11. h3 {[%clk 0:03:15.2]}
11... Nxf2 {[%clk 0:02:22.8]} 12. Kxf2 {[%clk 0:03:15.9]} 12... fxe4 {[%clk
0:02:23.4]} 13. Nxe4 {[%clk 0:03:17.3]} 13... Qh4+ {[%clk 0:02:23.9]} 14. Ke3
{[%clk 0:03:18.9]} 14... Qf4+ {[%clk 0:02:16.1]} 15. Kd3 {[%clk 0:03:17.2]}
15... Qf7 {[%clk 0:02:00.4]} 16. g4 {[%clk 0:03:16.6]} 16... Na6 {[%clk
0:01:55.3]} 17. Rf1 {[%clk 0:03:10.4]} 17... b5 {[%clk 0:01:53.8]} 18. b3 {[%clk
0:03:04.7]} 18... bxc4+ {[%clk 0:01:47.8]} 19. bxc4 {[%clk 0:03:06.6]} 19...
Nc5+ {[%clk 0:01:42.2]} 20. Nxc5 {[%clk 0:03:05.7]} 20... dxc5 {[%clk 0:01:43]}
21. Ng5 {[%clk 0:02:46.3]} 21... e4+ {[%clk 0:01:33]} 22. Nxe4 {[%clk
0:02:47.4]} 22... Qd7 {[%clk 0:01:22.4]} 23. Rxf8+ {[%clk 0:02:47.7]} 23... Kxf8
{[%clk 0:01:22.7]} 24. Bc3 {[%clk 0:02:41.4]} 24... Ba6 {[%clk 0:01:17.8]} 25.
Bxg7+ {[%clk 0:02:39.1]} 25... Kxg7 {[%clk 0:01:08.8]} 26. Kc3 {[%clk
0:02:17.1]} 26... Re8 {[%clk 0:01:05.2]} 27. Bd3 {[%clk 0:02:16.1]} 27... Qe7
{[%clk 0:00:58.3]} 28. Qe1 {[%clk 0:01:43.5]} 28... Qe5+ {[%clk 0:00:56.3]} 29.
Kc2 {[%clk 0:01:44.4]} 29... Qh2+ {[%clk 0:00:35]} 30. Qd2 {[%clk 0:01:40.8]}
30... Qxh3 {[%clk 0:00:26.6]} 31. Qc3+ {[%clk 0:01:41.9]} 1-0

[Event "*** Titled Tuesday Blitz"]
[Site "Chess.com"]
[Date "2019.11.05"]
[Round "9"]
[White "MathiasWomacka"]
[Black "FearNoEvil12"]
[Result "0-1"]
[WhiteElo "2296"]
[BlackElo "1992"]
[TimeControl "180+2"]
[EndTime "15:05:54 PST"]
[Termination "FearNoEvil12 won on time"]

1. e4 {[%clk 0:02:51.3]} 1... a6 {[%clk 0:03:00.4]} 2. d4 {[%clk 0:02:48.5]}
2... b5 {[%clk 0:03:01.6]} 3. Nf3 {[%clk 0:02:48]} 3... Bb7 {[%clk 0:03:03]} 4.
Bd3 {[%clk 0:02:49]} 4... e6 {[%clk 0:03:04.2]} 5. O-O {[%clk 0:02:48.1]} 5...
Nf6 {[%clk 0:03:05.7]} 6. Qe2 {[%clk 0:02:48.9]} 6... d6 {[%clk 0:03:07]} 7. a4
{[%clk 0:02:46.2]} 7... b4 {[%clk 0:03:02.1]} 8. a5 {[%clk 0:02:46.4]} 8... Nbd7
{[%clk 0:03:03.4]} 9. Nbd2 {[%clk 0:02:42.4]} 9... h6 {[%clk 0:03:02.9]} 10. e5
{[%clk 0:02:31.9]} 10... Nd5 {[%clk 0:03:02.9]} 11. Nc4 {[%clk 0:02:32.6]} 11...
g5 {[%clk 0:02:59.8]} 12. Bd2 {[%clk 0:02:30]} 12... Rg8 {[%clk 0:02:59.4]} 13.
c3 {[%clk 0:02:30]} 13... g4 {[%clk 0:02:54.1]} 14. Ne1 {[%clk 0:02:30.1]} 14...
b3 {[%clk 0:02:48.9]} 15. Ra3 {[%clk 0:02:28.2]} 15... dxe5 {[%clk 0:02:46.2]}
16. Rxb3 {[%clk 0:02:25.6]} 16... Bc6 {[%clk 0:02:44.9]} 17. Nxe5 {[%clk
0:02:09.6]} 17... Nxe5 {[%clk 0:02:44.4]} 18. Qxe5 {[%clk 0:02:11.1]} 18... Bd6
{[%clk 0:02:42.3]} 19. Qh5 {[%clk 0:02:02.4]} 19... Qf6 {[%clk 0:02:30.7]} 20.
Be4 {[%clk 0:01:54.3]} 20... Kd7 {[%clk 0:02:29.1]} 21. Nd3 {[%clk 0:01:52.6]}
21... Ba4 {[%clk 0:02:17.3]} 22. Bxd5 {[%clk 0:01:47.7]} 22... exd5 {[%clk
0:02:13.2]} 23. Qxd5 {[%clk 0:01:49.6]} 23... Bxb3 {[%clk 0:02:12.6]} 24. Qxb3
{[%clk 0:01:49.8]} 24... Rab8 {[%clk 0:02:09.7]} 25. Qc4 {[%clk 0:01:45.6]}
25... h5 {[%clk 0:02:03.2]} 26. Ne5+ {[%clk 0:01:31.4]} 26... Bxe5 {[%clk
0:02:00.4]} 27. dxe5 {[%clk 0:00:56.8]} 27... Qc6 {[%clk 0:02:00.1]} 28. Qxf7+
{[%clk 0:00:54.9]} 28... Kc8 {[%clk 0:01:58.3]} 29. Qxg8+ {[%clk 0:00:55.6]}
29... Kb7 {[%clk 0:01:59.8]} 30. Qf7 {[%clk 0:00:52]} 30... Ka8 {[%clk
0:01:54.5]} 31. e6 {[%clk 0:00:51.8]} 31... g3 {[%clk 0:01:51.9]} 32. hxg3
{[%clk 0:00:52.1]} 32... h4 {[%clk 0:01:52.2]} 0-1

[Event "*** Titled Tuesday Blitz"]
[Site "Chess.com"]
[Date "2019.11.05"]
[Round "9"]
[White "ExploringChess"]
[Black "Denis_Makhnyov"]
[Result "1-0"]
[WhiteElo "2746"]
[BlackElo "2899"]
[TimeControl "180+2"]
[EndTime "15:05:57 PST"]
[Termination "ExploringChess won by checkmate"]

1. e4 {[%clk 0:03:01.9]} 1... e5 {[%clk 0:03:00.4]} 2. Nf3 {[%clk 0:03:00.9]}
2... Nc6 {[%clk 0:03:01.5]} 3. Bc4 {[%clk 0:03:01.4]} 3... Bc5 {[%clk
0:03:01.8]} 4. c3 {[%clk 0:03:01.7]} 4... Nf6 {[%clk 0:03:02.7]} 5. d4 {[%clk
0:03:01.5]} 5... exd4 {[%clk 0:03:03.8]} 6. O-O {[%clk 0:03:03.4]} 6... d5
{[%clk 0:02:50.7]} 7. exd5 {[%clk 0:03:00.9]} 7... Nxd5 {[%clk 0:02:52.6]} 8.
cxd4 {[%clk 0:02:54.4]} 8... Be7 {[%clk 0:02:52.9]} 9. Bxd5 {[%clk 0:02:52.3]}
9... Qxd5 {[%clk 0:02:51.1]} 10. Nc3 {[%clk 0:02:54.2]} 10... Qd8 {[%clk
0:02:51.3]} 11. d5 {[%clk 0:02:54.2]} 11... Nb8 {[%clk 0:02:52.8]} 12. Bf4
{[%clk 0:02:52.7]} 12... O-O {[%clk 0:02:09.3]} 13. Nb5 {[%clk 0:02:50.8]} 13...
Bd6 {[%clk 0:02:10.2]} 14. Nxd6 {[%clk 0:02:41]} 14... cxd6 {[%clk 0:02:12.1]}
15. Re1 {[%clk 0:02:42.8]} 15... Na6 {[%clk 0:02:02.6]} 16. Qd4 {[%clk
0:02:31.8]} 16... Bf5 {[%clk 0:01:53.6]} 17. Rac1 {[%clk 0:02:31.9]} 17... Qd7
{[%clk 0:01:52.7]} 18. h3 {[%clk 0:02:29.7]} 18... Rfe8 {[%clk 0:01:49.4]} 19.
Nh4 {[%clk 0:02:27]} 19... Bg6 {[%clk 0:01:43.7]} 20. Nxg6 {[%clk 0:02:22.1]}
20... hxg6 {[%clk 0:01:44.7]} 21. Rxe8+ {[%clk 0:02:15]} 21... Rxe8 {[%clk
0:01:46.6]} 22. Qxa7 {[%clk 0:02:14.4]} 22... Nc5 {[%clk 0:01:46]} 23. Be3
{[%clk 0:02:09.1]} 23... Nd3 {[%clk 0:01:40]} 24. Rc2 {[%clk 0:02:07.6]} 24...
Qb5 {[%clk 0:01:15.7]} 25. Qd4 {[%clk 0:01:57.1]} 25... Nb4 {[%clk 0:01:16.3]}
26. Rc4 {[%clk 0:01:51.7]} 26... Nxa2 {[%clk 0:00:38.8]} 27. Ra4 {[%clk
0:01:40.5]} 27... Nc1 {[%clk 0:00:31.5]} 28. Bxc1 {[%clk 0:01:32.8]} 28... Re1+
{[%clk 0:00:32.1]} 29. Kh2 {[%clk 0:01:23.5]} 29... Rxc1 {[%clk 0:00:34]} 30.
Ra8+ {[%clk 0:01:23.7]} 30... Rc8 {[%clk 0:00:34.6]} 31. Rxc8+ {[%clk
0:01:23.9]} 31... Qe8 {[%clk 0:00:36.5]} 32. Rxe8+ {[%clk 0:01:24.3]} 32... Kh7
{[%clk 0:00:38.4]} 33. Qh4# {[%clk 0:01:26]} 1-0